Cogmind - Beta 13 @@@ ROGUE MODE // 2024.04.28 @ 00:09:20 Player: Lunace Result: Destroyed by Y-64 Sentinel with KE Penetrator Performance ------------- Evolutions (4) 2000 Regions Visited (14) 2800 Robots Destroyed (159) 795 Value Destroyed (5852) 5852 Prototype IDs (12) 240 Alien Tech Used (0) 0 Bonus (1916) 1916 TOTAL SCORE: 13603 Bonus ------- High Alert Combat Kills 891 Follower Combat Kills 784 Met Imprinter 300 Met R17 at Cetus 500 Friendly Fire -559 Cogmind --------- Core Integrity 0/850 Matter 300/300 Energy 100/100 System Corruption 0% Temperature Cool (0) Movement Core (350) Ox6 Location -6/Archives Parts ------- > --- POWER (1) -------- (None) > --- PROPULSION (4) --- (None) > --- UTILITY (6) ------ Large Storage Unit Experimental Core Analyzer Improved Armor Integrity Analyzer > --- WEAPON (4) ------- (None) > --- INVENTORY (15) --- Advanced Heat Sink Improved Matter Compressor (300) Improved Matter Compressor (216) Corruption Screen Long-range Tractor Beam Recalibrator Peak State ------------ > --- POWER ------------ Light Angular Momentum Engine > --- PROPULSION ------- Carbon-fiber Leg Flexi-carbon Leg Flexi-carbon Leg Flexi-carbon Leg > --- UTILITY ---------- Advanced Heat Sink Large Storage Unit Improved Matter Compressor Experimental Targeting Computer Experimental Core Analyzer Improved Armor Integrity Analyzer > --- WEAPON ----------- Flak Gun Antimatter Cannon Scatter Rocket Array Impact Mace > --- INVENTORY -------- Fission Core Myomer Leg Advanced Heat Sink Compact Matter Pod Compact Matter Pod Corruption Screen Long-range Tractor Beam Recalibrator Gauss Rifle Gauss Rifle Bore Cannon Makeshift Hammer [Rating: 85] Favorites ----------- Power Improved Deuterium Engine Engine Improved Deuterium Engine Power Core Nuclear Core Propulsion Improved Titanium Leg Treads Light Treads Leg Improved Titanium Leg Wheel Wheel Utility Long-range Tractor Beam Device Long-range Tractor Beam Storage High-capacity Storage Unit Processor Experimental Core Analyzer Hackware Advanced System Shield Protection Hardened Medium Armor Plating Weapon Mini Assault Cannon Energy Gun Medium Laser Ballistic Gun Flak Gun Ballistic Cannon Mini Assault Cannon Launcher Rocket Launcher Impact Weapon Makeshift Hammer Slashing Weapon Great Axe Build | -11 -10 -10 -10 -9 -8 -7 -7 -7 -7 -6 -6 -6 -6 -6 ------- Run | Yrd Mat Min Exi Min Mat Fac Low Low Zio Pro Fac Ext Cet Arc Slots Evolved 8 | . . . . . 4 2 . . . . 2 . . . Power . | . . . . . . . . . . . . . . . Propulsion 2 | . . . . . 2 . . . . . . . . . Utility 4 | . . . . . 1 1 . . . . 2 . . . Weapon 2 | . . . . . 1 1 . . . . . . . . Parts Attached 131 | 6 5 2 1 . 21 17 4 1 5 1 25 32 9 2 Power 14 | 1 . . . . 2 3 . . 1 . 4 1 2 . Engine 10 | 1 . . . . . 2 . . 1 . 4 1 1 . Core 4 | . . . . . 2 1 . . . . . . 1 . Reactor . | . . . . . . . . . . . . . . . Propulsion 32 | 2 . . . . 8 2 . . 1 . 6 9 4 . Treads 9 | 2 . . . . 4 . . . . . . . 3 . Leg 22 | . . . . . 4 1 . . 1 . 6 9 1 . Wheel 1 | . . . . . . 1 . . . . . . . . Hover . | . . . . . . . . . . . . . . . Flight . | . . . . . . . . . . . . . . . Utility 40 | 1 3 1 1 . 5 5 1 1 2 1 6 12 . 1 Device 11 | . 1 . . . . 2 1 . . 1 2 4 . . Storage 6 | 1 1 . 1 . 1 . . . . . 1 1 . . Processor 11 | . . 1 . . 3 . . . 2 . 1 4 . . Hackware 2 | . . . . . . 1 . . . . 1 . . . Protection 10 | . 1 . . . 1 2 . 1 . . 1 3 . 1 Artifact . | . . . . . . . . . . . . . . . Weapon 45 | 2 2 1 . . 6 7 3 . 1 . 9 10 3 1 Energy Gun 3 | 1 . . . . 1 . 1 . . . . . . . Energy Cannon . | . . . . . . . . . . . . . . . Ballistic Gun 10 | 1 2 . . . 2 1 . . . . 1 1 2 . Ballistic Cannon 15 | . . . . . 2 3 . . 1 . 4 4 1 . Launcher 9 | . . 1 . . 1 1 1 . . . 2 3 . . Special Weapon . | . . . . . . . . . . . . . . . Impact Weapon 6 | . . . . . . . 1 . . . 2 2 . 1 Slashing Weapon 2 | . . . . . . 2 . . . . . . . . Piercing Weapon . | . . . . . . . . . . . . . . . Special Melee Weapon . | . . . . . . . . . . . . . . . Unidentified Prototypes 11 | . . . . . 1 1 . . 2 . 3 4 . . Parts Lost 35 | . . . . . . . 2 . . . 1 10 11 11 Power 3 | . . . . . . . . . . . . . 2 1 Propulsion 9 | . . . . . . . . . . . . 1 5 3 Utility 9 | . . . . . . . 1 . . . 1 4 . 3 Weapon 14 | . . . . . . . 1 . . . . 5 4 4 Highest Loss Streak 11 | . . . . . . . 1 . . . 1 4 6 11 To Critical Strikes 4 | . . . . . . . . . . . . . 4 . Average Slot Usage (%) 96 | . 97 100 100 100 95 99 90 99 100 100 96 97 88 75 Engine 6 | . 14 14 14 14 2 3 7 7 7 7 6 6 1 5 Core 1 | . . . . . 6 3 . . . . . . 4 . Treads 5 | . 28 28 28 28 31 . . . . . . . 5 9 Leg 22 | . . . . . 1 29 30 30 30 30 25 25 11 4 Device 6 | . . . . . . 8 15 15 3 5 6 7 . . Storage 8 | . 14 14 14 14 9 7 7 7 7 7 6 7 13 11 Processor 10 | . . 11 14 14 14 4 . . 11 15 13 16 20 19 Hackware 1 | . . . . . . . . . . . 5 1 . . Protection 4 | . 11 2 . . 2 8 2 6 7 1 3 2 6 5 Ballistic Gun 5 | . 25 15 14 14 9 4 . . . . 3 4 10 12 Ballistic Cannon 10 | . . . . . 8 14 15 15 15 15 9 9 4 . Launcher 5 | . . 12 14 14 9 7 3 7 7 7 5 5 4 . Impact Weapon 3 | . . . . . . . 5 7 7 7 6 4 4 4 Naked Turns . | . . . . . . . . . . . . . . . Heaviest Build 84 | 12 17 19 28 28 58 80 79 79 79 78 84 73 61 52 Greatest Support 85 | 40 40 40 40 40 80 80 80 80 80 80 80 85 80 40 Greatest Overweight (x) 12 | 1 . . . . 1 . . . . . 1 1 1 12 Average Overweight (x) . | . . . . . . . . . . . . . . 2 Largest Inventory Capacity 20 | 8 10 10 15 15 20 20 20 20 20 20 20 15 15 15 Average Capacity 17 | 7 8 10 12 15 15 20 20 20 20 20 17 15 15 15 Most Carried 20 | 1 8 10 11 11 14 20 20 19 20 20 20 15 11 7 Average Carried 14 | . 3 9 10 11 11 16 19 18 19 20 16 10 7 6 Final Capacity 20 | 8 10 10 15 15 20 20 20 20 20 20 15 15 15 15 Final Carried 20 | 1 8 10 11 11 11 19 19 18 20 20 13 11 7 6 Class Distribution -------------------- 42% | Gunner 28% | Scavenger-Gunner 17% | Mutant 9% | Tank Dominant Class ---------------- Mutant | -10/Materials Mutant | -10/Mines Mutant | -10/Exiles Mutant | -9/Mines Scavenger-Gunner | -8/Materials Tank | -7/Factory Mutant | -7/Lower Caves Gunner | -7/Lower Caves Gunner | -7/Zion Gunner | -6/Proximity Caves Gunner | -6/Factory Scavenger-Gunner | -6/Extension Scavenger-Gunner | -6/Cetus Scavenger-Gunner | -6/Archives Resources | -11 -10 -10 -10 -9 -8 -7 -7 -7 -7 -6 -6 -6 -6 -6 ----------- Run | Yrd Mat Min Exi Min Mat Fac Low Low Zio Pro Fac Ext Cet Arc Matter Collected 5209 | 275 76 10 . . 547 938 362 64 71 181 975 1366 313 31 Remotely 3451 | . . . . . . 938 362 64 . 181 975 931 . . Salvage Created 5536 | 93 58 . . . 614 848 272 43 . 180 1170 1875 221 162 Parts 256 | . 6 . . . 46 43 16 8 . 21 32 72 8 4 Haulers Intercepted 10 | . 1 . . . 3 3 . . . . 3 . . . Recyclers Shooed 9 | . . . . . 1 4 . . . . 1 3 . . Parts Field Recycled . | . . . . . . . . . . . . . . . Retrieved Matter . | . . . . . . . . . . . . . . . Parts Self-Destructed 37 | . . . . . . . 16 4 . 17 . . . . Prevented . | . . . . . . . . . . . . . . . Kills | -11 -10 -10 -10 -9 -8 -7 -7 -7 -7 -6 -6 -6 -6 -6 ------- Run | Yrd Mat Min Exi Min Mat Fac Low Low Zio Pro Fac Ext Cet Arc Combat Hostiles Destroyed 104 | . . . . . 10 9 8 4 . 11 14 39 7 2 Melee 3 | . . . . . . 2 . . . . . 1 . . Guns 14 | . . . . . 3 1 . . . . 2 4 3 1 Cannons 40 | . . . . . 3 2 6 1 . 2 5 21 . . AOE 41 | . . . . . 4 4 2 3 . 9 4 11 4 . Classes Destroyed 18 | 1 2 . . . 6 2 . 1 . 1 . 5 . . Worker 7 | . 1 . . . 1 4 . . . . 1 . . . Builder 10 | . . . . . 4 3 . . . . . 3 . . Tunneler 3 | . . . . . 1 1 . . . . 1 . . . Hauler 10 | . 1 . . . 3 3 . . . . 3 . . . Recycler 11 | 1 . . . . . 6 . . . . 2 2 . . Mechanic 1 | . . . . . . . . . . . . 1 . . Operator 2 | . . . . . . . . . . . . 1 . 1 Drone 1 | . . . . . . . . . . 1 . . . . Watcher 8 | . . . . . 1 1 . . . . 1 3 2 . Swarmer 16 | . . . . . . . . 3 . 8 . 5 . . Saboteur 1 | . . . . . . . . . . . . 1 . . Grunt 50 | . . . . . 7 3 5 . . . 11 20 4 . Brawler 3 | . . . . . . . . . . . . 3 . . Duelist 3 | . . . . . . 1 1 . . . . 1 . . Sentry 10 | . . . . . 2 2 . . . . 1 3 . 2 Hunter 5 | . . . . . 1 . . . . 2 1 1 . . Programmer 7 | . . . . . . 3 2 1 . . 1 . . . Behemoth 2 | . . . . . . . . . . . . 2 . . Cetus Guard 3 | . . . . . . . . . . . . . 3 . Thug 2 | . . . . . . . . . . . . 2 . . Savage 1 | . . . . . . . . . . . . . 1 . Butcher 2 | . . . . . . . . . . . . 2 . . Guerrilla 1 | . . . . . . . . . . . . 1 . . Best Kill Streak 8 | 1 1 . . . 7 8 3 3 . 8 4 6 4 2 Combat Bots Only 8 | . . . . . 3 3 3 3 . 8 2 5 3 2 Max Kills in Single Turn 5 | 1 1 . . . 2 3 1 2 . 2 3 5 3 1 Gunslinging . | . . . . . . . . . . . . . . . Exploded 5 | . . . . . 2 2 1 2 . 2 2 5 3 . Melee 1 | . . . . . . 1 . . . . . 1 . . Uniques/NPCs Destroyed . | . . . . . . . . . . . . . . . Combat | -11 -10 -10 -10 -9 -8 -7 -7 -7 -7 -6 -6 -6 -6 -6 -------- Run | Yrd Mat Min Exi Min Mat Fac Low Low Zio Pro Fac Ext Cet Arc Hostile Shots Fired 673 | . 5 . . . 42 79 44 9 . 17 116 223 69 69 Missed 220 | . 2 . . . 16 30 14 2 . 5 27 82 24 18 Damage Taken 7789 | . 37 . . . 400 594 567 104 . 194 1469 1921 1295 1208 Core 1128 | . . . . . 48 39 137 32 . 13 73 175 171 440 Absorbed by Shields . | . . . . . . . . . . . . . . . Regen/Repaired (Parts) 208 | . . . . . . . . . . . 208 . . . Core Remaining (%) 89 | 100 . . . 100 91 . . . . 68 . . . . Volleys Fired 301 | 5 7 . . 1 49 55 25 6 . 13 45 76 14 5 Largest 4 | 2 2 . . 1 3 4 3 3 . 3 3 3 3 3 Hottest 164 | 70 70 . . 20 97 164 125 125 . 138 138 154 85 84 Shots Fired 586 | 10 14 . . 1 100 105 46 12 . 21 99 146 25 7 Gun 186 | 10 14 . . 1 47 30 . . . . 36 27 14 7 Cannon 334 | . . . . . 49 66 36 6 . 12 58 102 5 . Launcher 66 | . . . . . 4 9 10 6 . 9 5 17 6 . Special . | . . . . . . . . . . . . . . . Kinetic 513 | 5 12 . . 1 96 96 36 6 . 12 94 129 19 7 Thermal 7 | 5 2 . . . . . . . . . . . . . Explosive 57 | . . . . . 4 9 10 6 . 9 5 8 6 . Electromagnetic 9 | . . . . . . . . . . . . 9 . . Robot Hit Streak 12 | 3 5 . . 5 10 11 6 3 . 2 6 12 7 7 Robot Miss Streak 10 | 2 4 . . . 3 7 4 2 . 10 6 9 4 2 Penetration Max 3 | . . . . . . . . . . . 2 3 1 1 Secondary Targets 1 | . . . . . . . . . . . . . 1 . Max Gunslinging Chain 1 | . . . . . . . . . . . . . 1 . Shots Hit Robots 355 | 6 8 . . 1 60 73 19 5 . 5 66 84 16 12 Core Hits 417 | 2 4 . . . 36 52 15 7 . 17 48 114 116 6 Critical Kills 18 | . . . . . . . . . . 2 4 11 1 . Critical Parts Destroyed 17 | . . . . . . . . . . . 6 10 1 . Critical Strikes 42 | 2 . . . . . 2 . 1 . 2 11 22 2 . Burn 2 | 2 . . . . . . . . . . . . . . Destroy 30 | . . . . . . . . . . 2 8 18 2 . Blast 5 | . . . . . . 2 . 1 . . 1 1 . . Smash 5 | . . . . . . . . . . . 2 3 . . Melee Attacks 65 | . . . . . . 11 . . . . 19 20 5 10 Impact 54 | . . . . . . . . . . . 19 20 5 10 Slashing 11 | . . . . . . 11 . . . . . . . . Piercing . | . . . . . . . . . . . . . . . Sneak Attacks 14 | . . . . . . 7 . . . . 3 3 . 1 Combat Hostiles 1 | . . . . . . . . . . . 1 . . . Follow-up Attacks 1 | . . . . . . . . . . . . 1 . . Damage Inflicted 15984 | 79 84 . . 11 1547 2634 819 303 . 713 2625 4758 1981 430 Guns 1960 | 79 84 . . 11 438 415 . . . . 178 296 298 161 Cannons 5180 | . . . . . 724 886 490 89 . 64 924 1963 40 . Explosions 6362 | . . . . . 385 693 329 214 . 649 646 1803 1643 . Melee 2481 | . . . . . . 640 . . . . 876 696 . 269 Ramming 1 | . . . . . . . . . . . 1 . . . Kinetic 7076 | 40 59 . . 11 1162 1301 490 89 . 64 1102 2259 338 161 Thermal 360 | 39 25 . . . . . . . . . . 296 . . Explosive 5813 | . . . . . 385 693 329 214 . 649 646 1254 1643 . Electromagnetic 253 | . . . . . . . . . . . . 253 . . Impact 1841 | . . . . . . . . . . . 876 696 . 269 Slashing 640 | . . . . . . 640 . . . . . . . . Piercing . | . . . . . . . . . . . . . . . Highest Corruption 3 | . . . . . 3 3 3 3 3 . . . . . Average Corruption 2 | . . . . . 2 1 3 3 3 . . . . . Corruption Purged . | . . . . . . . . . . . . . . . Corruption Blocked 1 | . . . . . . . . . . . 1 . . . Effects 43 | . . . . . 8 13 13 5 4 . . . . . Message Errors 10 | . . . . . 1 4 2 2 1 . . . . . Matter Fused 10 | . . . . . 2 3 4 1 . . . . . . Heat Flow Errors 6 | . . . . . 2 . 1 1 2 . . . . . Energy Discharges 4 | . . . . . . . 3 . 1 . . . . . Parts Rejected 1 | . . . . . . 1 . . . . . . . . Parts Fused 1 | . . . . . 1 . . . . . . . . . Data Loss (minor) 6 | . . . . . 1 2 2 1 . . . . . . Data Loss (major) 2 | . . . . . . 2 . . . . . . . . Misfires 1 | . . . . . 1 . . . . . . . . . Alerts 2 | . . . . . . 1 1 . . . . . . . Overload Shots . | . . . . . . . . . . . . . . . Overflow Damage 999 | . . . . . 18 145 . 9 . . 278 441 . 108 Projectiles 71 | . . . . . 11 14 . 9 . . 7 30 . . Explosions 42 | . . . . . 7 20 . . . . 1 14 . . Melee 886 | . . . . . . 111 . . . . 270 397 . 108 Knockbacks 40 | . . . . . 2 7 6 . . 1 9 14 . 1 Impact 8 | . . . . . . . . . . . 2 5 . 1 Kinetic 30 | . . . . . 2 7 6 . . 1 6 8 . . Secondary 2 | . . . . . . . . . . . 1 1 . . Self-Inflicted Damage 291 | . . . . . . . 111 . . . . 135 45 . Shots 12 | . . . . . . . 4 . . . . 6 2 . Rammed . | . . . . . . . . . . . . . . . Targets Rammed 1 | . . . . . . . . . . . 1 . . . Kicked 1 | . . . . . . . . . . . 1 . . . Crushed . | . . . . . . . . . . . . . . . Highest Temperature 335 | 27 9 . . . 215 280 327 177 214 114 335 325 21 . Average Temperature 94 | 12 6 . . . 47 78 118 81 97 43 103 146 5 . Received Heat Transfer 1737 | . 21 . . . 126 186 165 . . . 444 534 54 207 Effects 7 | . . . . . . . . . . . . 7 . . Energy Bleed 1 | . . . . . . . . . . . . 1 . . Interference 4 | . . . . . . . . . . . . 4 . . Matter Decay 1 | . . . . . . . . . . . . 1 . . Damage (minor) 1 | . . . . . . . . . . . . 1 . . Siege Activations . | . . . . . . . . . . . . . . . Robots Corrupted . | . . . . . . . . . . . . . . . Combat Hostiles . | . . . . . . . . . . . . . . . Parts Fried 8 | . . . . . . . . . . . 2 4 . 2 Impact Corruptions 24 | . . . . . . . . . . . 9 11 . 4 Robots Melted . | . . . . . . . . . . . . . . . Combat Hostiles . | . . . . . . . . . . . . . . . Parts Melted . | . . . . . . . . . . . . . . . Heat Transferred 533 | 259 74 . . . . . . . . . . 200 . . Parts Sabotaged . | . . . . . . . . . . . . . . . Parts Stolen . | . . . . . . . . . . . . . . . Parts Stripped . | . . . . . . . . . . . . . . . Power Chain Reactions 2 | . . . . . . . . . . . . 2 . . Alert | -11 -10 -10 -10 -9 -8 -7 -7 -7 -7 -6 -6 -6 -6 -6 ------- Run | Yrd Mat Min Exi Min Mat Fac Low Low Zio Pro Fac Ext Cet Arc Peak Influence 999 | 5 69 5 . . 250 391 . . . . 454 999 863 288 Initial 524 | . 3 5 . . . 87 . . . . 171 182 524 265 Average 343 | . 23 5 . . 98 111 . . . . 238 683 706 263 Maximum Alert Level 3 | . . . . . 1 1 . . . . 2 3 3 1 Low Security (%) 49 | 100 100 100 . 100 96 89 . . . . 48 2 . . Level 1 14 | . . . . . 3 10 . . . . 46 8 . 100 Level 2 13 | . . . . . . . . . . . 4 29 49 . Level 3 22 | . . . . . . . . . . . . 60 50 . Level 4 . | . . . . . . . . . . . . . . . Level 5 . | . . . . . . . . . . . . . . . High Security . | . . . . . . . . . . . . . . . Max Security . | . . . . . . . . . . . . . . . Squads Dispatched 23 | . 2 . . . 3 4 . . . . 6 6 2 . Investigation 4 | . . . . . 2 . . . . . . . 2 . Extermination 4 | . . . . . . 3 . . . . 1 . . . Reinforcement 13 | . 2 . . . 1 1 . . . . 5 4 . . Assault 2 | . . . . . . . . . . . . 2 . . Garrison . | . . . . . . . . . . . . . . . Intercept . | . . . . . . . . . . . . . . . Searches Triggered . | . . . . . . . . . . . . . . . Construction Impeded 4 | . . . . . . 1 . . . . 1 2 . . Haulers Reinforced 2 | . . . . . . . . . . . 2 . . . Active Scanning Responses . | . . . . . . . . . . . . . . . Cargo Convoy Interrupts 1 | . . . . . . . . . . . 1 . . . Stealth | -11 -10 -10 -10 -9 -8 -7 -7 -7 -7 -6 -6 -6 -6 -6 --------- Run | Yrd Mat Min Exi Min Mat Fac Low Low Zio Pro Fac Ext Cet Arc Distress Signals 9 | . . . . . . . . . . . 2 4 2 1 Communications Jammed . | . . . . . . . . . . . . . . . Distress Signals . | . . . . . . . . . . . . . . . Times Spotted 142 | . 8 . . . 13 14 9 4 . 11 17 50 11 5 Peak Tracking Total 5 | . 3 . . . 3 5 3 3 . 5 4 5 5 3 Tactical Retreats 4 | . . . . . . 1 1 . . . 2 . . . Traps | -11 -10 -10 -10 -9 -8 -7 -7 -7 -7 -6 -6 -6 -6 -6 ------- Run | Yrd Mat Min Exi Min Mat Fac Low Low Zio Pro Fac Ext Cet Arc Traps Triggered 6 | . 1 . . . 4 . . . . . . 1 . . Indirectly . | . . . . . . . . . . . . . . . Trap Hack Attempts . | . . . . . . . . . . . . . . . Triggered . | . . . . . . . . . . . . . . . Disarmed . | . . . . . . . . . . . . . . . Reprogrammed . | . . . . . . . . . . . . . . . Reused . | . . . . . . . . . . . . . . . Traps Extracted . | . . . . . . . . . . . . . . . Installed . | . . . . . . . . . . . . . . . Triggered 1 | . . . . . . . . . . . 1 . . . Machines | -11 -10 -10 -10 -9 -8 -7 -7 -7 -7 -6 -6 -6 -6 -6 ---------- Run | Yrd Mat Min Exi Min Mat Fac Low Low Zio Pro Fac Ext Cet Arc Machines Disabled 19 | . . . . . 1 5 . . . . . 8 5 . Max in Single Turn 2 | . . . . . 1 2 . . . . . 2 1 . Energy Cycler 2 | . . . . . . . . . . . . 2 . . Machines Repaired . | . . . . . . . . . . . . . . . Machines Dismantled . | . . . . . . . . . . . . . . . Machines Sabotaged . | . . . . . . . . . . . . . . . Overloaded Fab Kills . | . . . . . . . . . . . . . . . Hacking | -11 -10 -10 -10 -9 -8 -7 -7 -7 -7 -6 -6 -6 -6 -6 --------- Run | Yrd Mat Min Exi Min Mat Fac Low Low Zio Pro Fac Ext Cet Arc Machines Accessed 25 | . 3 . 1 . 2 2 . . . . 5 9 3 . Terminals 19 | . 2 . . . 2 2 . . . . 1 9 3 . Fabricators 1 | . . . . . . . . . . . 1 . . . Repair Stations 2 | . . . . . . . . . . . 2 . . . Recycling Units 2 | . 1 . . . . . . . . . 1 . . . Scanalyzers . | . . . . . . . . . . . . . . . Garrison Access . | . . . . . . . . . . . . . . . Total Hacks 84 | . 19 . 1 . 6 5 . . . . 20 24 9 . Successful 39 | . 10 . 1 . 3 3 . . . . 11 10 1 . Failed 45 | . 9 . . . 3 2 . . . . 9 14 8 . Catastrophic 7 | . . . . . . 1 . . . . 1 . 5 . Database Lockouts . | . . . . . . . . . . . . . . . Manual 46 | . 15 . . . 6 5 . . 1 . 7 11 1 . Terminals 57 | . 11 . . . 6 5 . . . . 2 24 9 . Fabricators 4 | . . . . . . . . . . . 4 . . . Repair Stations 9 | . . . . . . . . . . . 9 . . . Recycling Units 13 | . 8 . . . . . . . . . 5 . . . Scanalyzers . | . . . . . . . . . . . . . . . Garrison Access . | . . . . . . . . . . . . . . . Terminal Hacks 13 | . 1 . 1 . 1 1 . . . . . 8 1 . Record 2 | . . . 1 . . . . . . . . . 1 . Robot Analysis 1 | . . . . . 1 . . . . . . . . . Open Door 4 | . . . . . . . . . . . . 4 . . Locate Traps 2 | . . . . . . . . . . . . 2 . . Recall Investigation 2 | . 1 . . . . 1 . . . . . . . . Zone Layout 2 | . . . . . . . . . . . . 2 . . Fabricator Hacks 1 | . . . . . . . . . . . 1 . . . Network Status 1 | . . . . . . . . . . . 1 . . . Repair Station Hacks 6 | . . . . . . . . . . . 6 . . . Scan Component 3 | . . . . . . . . . . . 3 . . . Repair 3 | . . . . . . . . . . . 3 . . . Recycling Unit Hacks 3 | . 2 . . . . . . . . . 1 . . . Report Inventory 2 | . 1 . . . . . . . . . 1 . . . Retrieve Components 1 | . 1 . . . . . . . . . . . . . Scanalyzer . | . . . . . . . . . . . . . . . Garrison Access Hacks . | . . . . . . . . . . . . . . . Unauthorized Hacks 16 | . 7 . . . 2 2 . . . . 3 2 . . Terminals 9 | . 3 . . . 2 2 . . . . . 2 . . Botnet 8 | . 2 . . . 2 2 . . . . . 2 . . Operators 1 | . 1 . . . . . . . . . . . . . Fabricators 1 | . . . . . . . . . . . 1 . . . Haulers 1 | . . . . . . . . . . . 1 . . . Repair Stations . | . . . . . . . . . . . . . . . Recycling Units 6 | . 4 . . . . . . . . . 2 . . . Monitor 2 | . 1 . . . . . . . . . 1 . . . Reject 1 | . 1 . . . . . . . . . . . . . Recyclers 2 | . 1 . . . . . . . . . 1 . . . Mask 1 | . 1 . . . . . . . . . . . . . Scanalyzers . | . . . . . . . . . . . . . . . Garrison Access . | . . . . . . . . . . . . . . . Data Cores Recovered . | . . . . . . . . . . . . . . . Used . | . . . . . . . . . . . . . . . Hacking Detections 20 | . 2 . . . 2 2 . . . . 5 6 3 . Full Trace Events 3 | . . . . . 1 . . . . . . . 2 . Feedback Events . | . . . . . . . . . . . . . . . Feedback Blocked . | . . . . . . . . . . . . . . . Robot Schematics Acquired 3 | . . . . . . . . . 3 . . . . . Robots Built . | . . . . . . . . . . . . . . . Authchips . | . . . . . . . . . . . . . . . Time . | . . . . . . . . . . . . . . . Total Robot Build Rating . | . . . . . . . . . . . . . . . Part Schematics Acquired 13 | . . . . . . . . . 13 . . . . . Parts Built . | . . . . . . . . . . . . . . . Authchips . | . . . . . . . . . . . . . . . Time . | . . . . . . . . . . . . . . . Total Part Build Rating . | . . . . . . . . . . . . . . . Parts Repaired 3 | . . . . . . . . . . . 3 . . . Time 132 | . . . . . . . . . . . 132 . . . Parts Recycled . | . . . . . . . . . . . . . . . Recycled Matter . | . . . . . . . . . . . . . . . Retrieved Matter . | . . . . . . . . . . . . . . . Retrieved Components 3 | . 3 . . . . . . . . . . . . . Parts Scanalyzed . | . . . . . . . . . . . . . . . Part Schematics Acquired . | . . . . . . . . . . . . . . . Parts Damaged . | . . . . . . . . . . . . . . . Bothacking | -11 -10 -10 -10 -9 -8 -7 -7 -7 -7 -6 -6 -6 -6 -6 ------------ Run | Yrd Mat Min Exi Min Mat Fac Low Low Zio Pro Fac Ext Cet Arc Used RIF Installer . | . . . . . . . . . . . . . . . Robots Hacked . | . . . . . . . . . . . . . . . Non-combat . | . . . . . . . . . . . . . . . Combat . | . . . . . . . . . . . . . . . Robot Hacks Applied . | . . . . . . . . . . . . . . . Relay Couplers Released . | . . . . . . . . . . . . . . . Fabnet Peak Effective % . | . . . . . . . . . . . . . . . Robots Rewired 16 | . . . . . . . . . . . . 16 . . Allies Hacked . | . . . . . . . . . . . . . . . Hacks Repelled . | . . . . . . . . . . . . . . . Allies | -11 -10 -10 -10 -9 -8 -7 -7 -7 -7 -6 -6 -6 -6 -6 -------- Run | Yrd Mat Min Exi Min Mat Fac Low Low Zio Pro Fac Ext Cet Arc Total Allies 18 | . . . . . . . . . . . . 18 . . Largest Group 10 | . . . . . . . . . . . . 10 6 1 Highest-Rated Group 276 | . . . . . . . . . . . . 276 144 18 Highest-Rated Ally 39 | . . . . . . . . . . . . 39 39 18 Total Orders . | . . . . . . . . . . . . . . . Ally Attacks 124 | . . . . . . . . . . . . 81 42 1 Total Damage 2470 | . . . . . . . . . . . . 1391 1035 44 Kills 13 | . . . . . . . . . . . . 6 7 . Allies Corrupted 1 | . . . . . . . . . . . . 1 . . Allies Melted . | . . . . . . . . . . . . . . . Intel | -11 -10 -10 -10 -9 -8 -7 -7 -7 -7 -6 -6 -6 -6 -6 ------- Run | Yrd Mat Min Exi Min Mat Fac Low Low Zio Pro Fac Ext Cet Arc Robot Analysis Total 1 | . . . . . 1 . . . . . . . . . Derelict Logs Recovered 4 | . . . . . . . 1 1 1 1 . . . . Drone Launches . | . . . . . . . . . . . . . . . Drone Recoveries . | . . . . . . . . . . . . . . . Exploration | -11 -10 -10 -10 -9 -8 -7 -7 -7 -7 -6 -6 -6 -6 -6 ------------- Run | Yrd Mat Min Exi Min Mat Fac Low Low Zio Pro Fac Ext Cet Arc Turns Passed 10081 | 82 481 202 292 39 673 1438 1100 344 1196 444 1077 2045 523 145 Spaces Moved 5843 | 39 273 105 178 22 296 868 782 252 893 166 536 1171 227 35 Core 11 | 6 . . . . . . . . . . . . . 5 Treads 989 | 33 273 105 178 22 286 . . . . . . . 62 30 Legs 4843 | . . . . . 10 868 782 252 893 166 536 1171 165 . Wheels . | . . . . . . . . . . . . . . . Hover . | . . . . . . . . . . . . . . . Flight . | . . . . . . . . . . . . . . . Fastest Speed 50 | 50 160 160 160 160 130 130 130 130 130 132 125 120 120 240 Average Speed 136 | 148 160 160 160 160 159 130 130 130 131 132 133 120 195 281 Slowest Speed 650 | 160 160 160 160 160 200 130 130 130 132 132 203 192 240 650 Overloaded Moves . | . . . . . . . . . . . . . . . Propulsion Burnouts . | . . . . . . . . . . . . . . . Robots Hopped . | . . . . . . . . . . . . . . . Cave-ins Triggered . | . . . . . . . . . . . . . . . Exploration Rate (%) 46 | 4 47 30 53 12 31 18 84 47 86 43 16 95 89 49 Regions Visited 14 Branch Regions 10 Pre-discovered Areas 4 | . . . 1 . . . . . 3 . . . . . Known Exits Taken 3 | . . . . . 1 . . . . 1 1 . . . Unknown Exits Taken 11 | 1 1 1 1 1 . 1 1 1 1 . . 1 1 . Scrap Searched 7 | . . 1 . . . . 2 1 3 . . . . . Spaces Dug 94 | . . . . . 9 16 59 . . . . 8 . 2 Terrain Destroyed 787 | . . . . . 37 77 112 55 . 71 98 153 182 2 Melee 5 | . . . . . . . . . . . . 3 . 2 Projectile 100 | . . . . . 8 10 14 2 . 8 24 34 . . AOE 682 | . . . . . 29 67 98 53 . 63 74 116 182 . Terrain Rammed . | . . . . . . . . . . . . . . . Walls Destroyed . | . . . . . . . . . . . . . . . Machines Disabled . | . . . . . . . . . . . . . . . Actions | -11 -10 -10 -10 -9 -8 -7 -7 -7 -7 -6 -6 -6 -6 -6 --------- Run | Yrd Mat Min Exi Min Mat Fac Low Low Zio Pro Fac Ext Cet Arc Total 7307 | 50 304 139 188 25 403 1068 822 258 922 371 789 1637 265 66 Wait 587 | . 8 30 . 3 5 87 6 . 2 192 129 102 10 13 Move 5829 | 38 272 104 177 21 295 867 781 251 892 165 535 1170 226 35 Hop . | . . . . . . . . . . . . . . . Pick Up 78 | 1 9 1 5 . 11 16 2 . 10 . 7 15 1 . Fast Attach 66 | 6 3 2 . . 13 8 2 . 3 . 13 12 4 . Attach 35 | . 1 . . . 3 3 1 1 1 . 5 13 5 2 Detach 11 | . . 1 . . 1 1 . . 2 . 4 1 . 1 Swap 30 | . 1 . 1 . 5 6 1 . 1 1 7 7 . . Drop 105 | . 3 1 5 . 21 14 4 . 11 . 24 22 . . Fire 301 | 5 7 . . 1 49 55 25 6 . 13 45 76 14 5 Melee 64 | . . . . . . 11 . . . . 19 19 5 10 Ram . | . . . . . . . . . . . . . . . Kick 1 | . . . . . . . . . . . 1 . . . Crush . | . . . . . . . . . . . . . . . Escape Stasis 3 | . . . . . . . . . . . . 3 . . Rewire 197 | . . . . . . . . . . . . 197 . . Trap . | . . . . . . . . . . . . . . . Miscellaneous . | . . . . . . . . . . . . . . . Route ------- -11/Scrapyard -10/Materials (discovered 2 exits: [*Mat] / [*Min]) -10/Mines -10/Exiles -9/Mines -8/Materials -7/Factory (discovered 2 exits: *Fac / [*Low]) -7/Lower Caves -7/Lower Caves -7/Zion -6/Proximity Caves -6/Factory (discovered 2 exits: [*Fac] / *Ext) -6/Extension (discovered 3 exits: [*Fac x2] / *Cet) -6/Cetus (discovered 2 exits: [*Fac] / [*Arc]) -6/Archives History --------- Turn | Location | Event 11 | -11/Scrapyard | Discovered new exit (range 15) 83 | -11/Scrapyard | Entered Materials 238 | -10/Materials | Discovered new exit (range 15) 313 | -10/Materials | Build established: Mutant 453 | -10/Materials | Discovered new exit (range 8) 564 | -10/Materials | Entered Mines 580 | -10/Mines | YI-UF0 nonchalantly dropped a Grenade Launcher on the ground 759 | -10/Mines | Deemed a non-threat by the Exiles lab entrance 759 | -10/Mines | Discovered new exit (range 5) 766 | -10/Mines | Entered Exiles 827 | -10/Exiles | Met 8R-AWN 853 | -10/Exiles | Met EX-HEX 939 | -10/Exiles | Met EX-DEC 968 | -10/Exiles | Learned location of Zion (-7) 1036 | -10/Exiles | Discovered new exit (range 14) 1058 | -10/Exiles | Entered Mines 1087 | -9/Mines | Discovered new exit (range 6) 1097 | -9/Mines | Entered Materials 1097 | -8/Materials | Evolved 4 slots: Propulsion x2, Utility x1, Weapon x1 1636 | -8/Materials | Build established: Scavenger-Gunner 1680 | -8/Materials | Discovered new exit (range 16) 1769 | -8/Materials | Identified exit to Factory 1770 | -8/Materials | Entered Factory 1770 | -7/Factory | Evolved 2 slots: Utility x1, Weapon x1 2102 | -7/Factory | Discovered new exit (range 16) 2299 | -7/Factory | Build established: Tank 2427 | -7/Factory | Identified exit to Factory 3168 | -7/Factory | Discovered new exit (range 5) 3208 | -7/Factory | Entered Lower Caves 3296 | -7/Lower Caves | Build established: Gunner 3565 | -7/Lower Caves | Spotted B-75 Beast 3788 | -7/Lower Caves | Build established: Mutant 4260 | -7/Lower Caves | Learned location of 1 exit from Factory 4294 | -7/Lower Caves | Discovered new exit (range 12) 4308 | -7/Lower Caves | Entered another Lower Caves area 4389 | -7/Lower Caves | Build established: Gunner 4435 | -7/Lower Caves | Encountered a Warlord checkpoint 4627 | -7/Lower Caves | Learned Factory garrison access intel 4645 | -7/Lower Caves | Discovered new exit (range 5) 4652 | -7/Lower Caves | Entered Zion 4681 | -7/Zion | Received a visual enhancement algorithm 4793 | -7/Zion | Discovered new exit (range 15) 4835 | -7/Zion | System corruption cleaned by Quarantine Array 4884 | -7/Zion | Found Prototype Processor 4884 | -7/Zion | Identified Spectral Analyzer 4914 | -7/Zion | Found Prototype Processor 4914 | -7/Zion | Identified Exp. Core Analyzer 4917 | -7/Zion | Found Prototype Processor 4920 | -7/Zion | Found Prototype Processor 4925 | -7/Zion | Found Spectral Analyzer 4933 | -7/Zion | Found Prototype Processor 5253 | -7/Zion | Learned location of Testing (-3) 5467 | -7/Zion | Learned location of Warlord (-5) 5848 | -7/Zion | Entered Proximity Caves 5923 | -6/Proximity Caves | Spotter reported a threat 5957 | -6/Proximity Caves | Destroyed 8 combat bots 6067 | -6/Proximity Caves | Learned Factory trap positions 6090 | -6/Proximity Caves | Discovered exit to Factory (range 7) 6145 | -6/Proximity Caves | Received a Behemoth hack from an annoying Tinkerer 6292 | -6/Proximity Caves | Entered Factory 6292 | -6/Factory | Evolved 2 slots: Utility x2 6293 | -6/Factory | Identified exit to Extension 6294 | -6/Factory | Loaded intel: 74 trap records 6295 | -6/Factory | Loaded intel: 4 garrison access locations 6350 | -6/Factory | Repaired Imp. Titanium Leg 6352 | -6/Factory | Repaired Imp. Titanium Leg 6396 | -6/Factory | Repaired Imp. Titanium Leg 6744 | -6/Factory | Found Prototype Launcher 6744 | -6/Factory | Identified Scatter Rocket Array 6755 | -6/Factory | Found Scatter Rocket Array 7247 | -6/Factory | Cargo convoy interrupted 7294 | -6/Factory | Discovered new exit (range 9) 7369 | -6/Factory | Entered Extension 7371 | -6/Extension | Disrupted transfer network 7410 | -6/Extension | Energy Cycler disabled 7410 | -6/Extension | Rescued a captive Derelict 7412 | -6/Extension | Rescued a captive Derelict 7413 | -6/Extension | Rescued a captive Derelict 7413 | -6/Extension | Rescued a captive Derelict 7413 | -6/Extension | Rescued a captive Derelict 7419 | -6/Extension | Rescued a captive Derelict 7719 | -6/Extension | First assault squad dispatched 7732 | -6/Extension | Lost 3 allies 7924 | -6/Extension | Build established: Scavenger-Gunner 8004 | -6/Extension | Spotted B-75 Beast 8059 | -6/Extension | Destroyed B-75 Beast 8114 | -6/Extension | Lost 4 parts (1n3w) 8116 | -6/Extension | Spotted B-75 Beast 8141 | -6/Extension | Destroyed B-75 Beast 8192 | -6/Extension | Discovered new exit (range 15) 8303 | -6/Extension | Identified Exp. Melee Analysis Suite 8304 | -6/Extension | Identified Exp. Targeting Computer (x2) 8429 | -6/Extension | Extracted ID and sensor layout for unrecognized location from A7's data core 8742 | -6/Extension | Discovered new exit (range 10) 8743 | -6/Extension | Discovered new exit (range 6) 9414 | -6/Extension | Entered Cetus 9414 | -6/Cetus | Accompanied by 6 allies 9431 | -6/Cetus | Spotted Cetus Guard 9431 | -6/Cetus | Spotted Cetus Guard 9432 | -6/Cetus | Spotted Cetus Guard 9432 | -6/Cetus | Spotted Cetus Guard 9455 | -6/Cetus | Allies destroyed Cetus Guard 9459 | -6/Cetus | Allies destroyed Cetus Guard 9461 | -6/Cetus | Allies destroyed Cetus Guard 9465 | -6/Cetus | Allies destroyed Cetus Guard 9491 | -6/Cetus | Lost 5 parts (1p3n1w) 9565 | -6/Cetus | Cetus Manufacturing Module disabled 9658 | -6/Cetus | Lost 3 allies 9721 | -6/Cetus | Discovered new exit (range 15) 9762 | -6/Cetus | Spotted Cetus Guard 9762 | -6/Cetus | Spotted Cetus Guard 9766 | -6/Cetus | Spotted Cetus Guard 9772 | -6/Cetus | Destroyed Cetus Guard 9777 | -6/Cetus | Spotted Cetus Guard 9777 | -6/Cetus | Destroyed Cetus Guard 9784 | -6/Cetus | Destroyed Cetus Guard 9795 | -6/Cetus | Allies destroyed Cetus Guard 9802 | -6/Cetus | Discovered new exit (range 15) 9813 | -6/Cetus | Lost 6 parts (1p2n3w) 9814 | -6/Cetus | Met Revision 17 9937 | -6/Cetus | Entered Archives 9937 | -6/Archives | Accompanied by 1 ally 10021 | -6/Archives | Core integrity fell below 50% 10076 | -6/Archives | Core integrity fell below 20% 10082 | -6/Archives | Destroyed by Y-64 Sentinel with KE Penetrator Last Messages --------------- 10045_ Y-64 Sentinel system corrupted by crushing effect. 10045_ Penetrated by Slug. 10046_ Y-64 Sentinel system terminally corrupted. 10046_ Penetrated by Slug. 10047_ Slug penetrates Y-64 Sentinel. 10049_ Gauss Rifle destroyed. 10049_ Slug penetrates O-32 Director. 10051_ Penetrated by Slug. 10051_ Flexi-carbon Leg destroyed. 10054_ Slug penetrates Wall. 10067_ Imp. Deuterium Engine destroyed. 10067_ Penetrated by Slug. 10072_ Hrd. Light Armor Plating destroyed. 10072_ Penetrated by Slug. 10075_ Mak. Hammer destroyed. 10075_ Exp. Targeting Computer destroyed. 10078_ Penetrated by Slug. [Achievement: Overachiever] Map ----- +----------------------------------------------------+ | | | | | | | ????????????????????????????????????????? | | ????????????????????????????????????????? | | ????????????????????????????????????????? | | ????????????????????????????????????????? | | ????????????????????????????????????????? | | ????????????????????????????????????????? | | ????????????????????????????????????????? | | ????????????????????????????????????????? | | ????????????????????????????????????????? | | ????????????????????????????????????????? | | ????????????????????????????????????????? | | ????????????????????"???????????????????? | | ??????????????????##"#"##???????????????? | | ??????????????????"""""""#??????????????? | | ??????????????????"""V"""#??????????????? | | ?????????????????? "" """#? #??????????? | | ??????###???????## ""# !##?????????? | | ??#####"######### %* o !%=#?????????? | | ??# % ""????????? | | ??# * o ""????????? | | ??# "????????? | | ??#####+#########Y V???????? | | ??# #" "@ "????????? | | ??# ;" ""????????? | | ??# """"""" Y "?????????? | | ??#"""""""""#"V o #?????????? | | ??#""""""""""""" ?????????? | | ??#"""""""""#""" ?????????? | | ??#"""""""""#"""" ?????????? | | ?????############ o ??????????? | | ?????????????????# o#"" ""#??????????? | | ?????????????????? #""" ""????????????? | | ?????????????????? #???V"?????????????? | | ?????????????????? #??????????????????? | | ?????????????????? #??????????????????? | | ?????????????????? #??????????????????? | | ?????????????????? ???????????????????? | | ????????????????????????????????????????? | | ????????????????????????????????????????? | | ????????????????????????????????????????? | | ????????????????????????????????????????? | | ????????????????????????????????????????? | | ????????????????????????????????????????? | | ????????????????????????????????????????? | | ????????????????????????????????????????? | | ????????????????????????????????????????? | | ????????????????????????????????????????? | +----------------------------------------------------+ Best States ------------- Heat Dissipation 75 Energy Generation 18 Energy Capacity 310 Matter Stores 600 Matter Capacity 600 Sight Range 24 Terrain Scan Density 10 Corruption Block 8 Armor Coverage 450 Utility Shielding 33 Evasion (%) 55 Targeting Accuracy 12 Core Analysis 8 Armor Integrity Analysis 40 Recoil Reduction 4 Kinecelleration 30 Defensive Hacking 14 Item Schematics ----------------- Enh. Optical Array | -7/Zion | Archive Gauss Rifle | -7/Zion | Archive Launcher Guidance Computer | -7/Zion | Archive Falx | -7/Zion | Archive Hvy. Treads | -7/Zion | Archive Imp. Carbon-fiber Leg | -7/Zion | Archive Imp. Trap Scanner | -7/Zion | Archive System Restoration Module | -7/Zion | Archive Mak. Shrapnel Gun | -7/Zion | Archive Fusion Compressor | -7/Zion | Archive Mak. Light Armor Plating | -7/Zion | Archive Hvy. Riot Gun | -7/Zion | Archive Imp. Coolant Injector | -7/Zion | Archive Robot Schematics ------------------ B-48 Gladiator | -7/Zion | Archive T-07 Excavator | -7/Zion | Archive I-36 Angel | -7/Zion | Archive Fabricated ------------ Nothing Alien Tech Used ----------------- None Achievements -------------- Overachiever Revising The Future Challenges ------------ None Game ------ Seed DrainedAblativeOptics Manual? 0 Play Time 01:29:09 Cumulative 131.2 hours Start 2024.04.27 @ 20:00:33 End 2024.04.28 @ 00:09:20 Sessions 3 Manual Loads 0 Difficulty Rogue Special Mode None Game No. 136 Rogue 131 Adventurer 5 Explorer 0 Win Type - Total 3 Types 2/0/0/1/0/0/0/0/0 Lore% 51 Gallery% 67 Achievement% 50 Wizard Run 0 Options --------- Layout 1 ASCII 0 Keyboard 0 Movement Arrows Keybinds 0 Fullscreen 1 Font 24/Terminus Map View 50x35 Zoom Use 0% Tactical HUD 1 Map Filters NONE Filters NONE Steam 1 RUN: 43c1fa95-5e19-4345-8622-202efd6b2511